bitfinex-derivatives/quotes_SOLF0:USTF0_20260107
["timestamp","ask_amount","ask_price","bid_price","bid_amount"]
[1767817616594,6.661,135.26,135.2,8.28513595]
[1767817620213,6.661,135.26,135.2,15.19049133]
[1767817620515,6.6605,135.28,135.22,1.62123595]
[1767817621410,6.6606,135.27,135.22,1.62123595]
[1767817621712,87.42,135.3,135.21,1.62123595]
[1767817622104,6.6605,135.27,135.21,8.28463595]
[1767817623307,6.6605,135.27,135.22,1.57338917]
[1767817624319,87.42,135.31,135.23,1.57338917]
[1767817625415,6.6596,135.29,135.23,1.57338917]
[1767817626716,87.42,135.31,135.23,1.57338917]
[1767817626915,6.66,135.28,135.21,8.47874455]
[1767817627122,6.66,135.28,135.22,1.57338917]
[1767817630719,6.6606,135.27,135.22,1.57338917]
[1767817633324,6.66,135.28,135.22,1.57338917]
[1767817633528,103.5734,135.32,135.22,1.57338917]
[1767817633826,87.42,135.32,135.23,1.59652099]
[1767817634028,87.42,135.32,135.25,6.6615]
[1767817634219,106.95473567,135.36,135.25,6.6615]
[1767817634418,6.6583,135.32,135.25,6.6615]
[1767817635834,6.6583,135.32,135.26,8.25742099]
[1767817636537,6.6586,135.31,135.26,1.59652099]
[1767817637125,87.42,135.35,135.24,8.50187637]
[1767817637126,6.6591,135.3,135.24,8.50187637]
[1767817637327,6.6591,135.3,135.24,1.59652099]
[1767817638219,6.6591,135.3,135.24,8.25832099]
[1767817640932,6.6586,135.31,135.24,8.25832099]
[1767817646230,6.6586,135.31,135.25,6.6614]
[1767817647938,3.41203567,135.32,135.23,6.6623]
[1767817648238,3.41203567,135.29,135.2,8.50187637]
[1767817648426,90.81203567,135.29,135.2,8.50187637]
[1767817649240,6.6606,135.27,135.2,15.16577637]
[1767817650541,8.84426666,135.27,135.2,15.16577637]
[1767817651525,6.6606,135.27,135.2,15.16577637]
[1767817651732,8.84426666,135.27,135.2,15.16577637]
[1767817652531,2.18366666,135.27,135.21,1.63077593]
[1767817655244,8.84376666,135.28,135.21,1.63077593]
[1767817655842,6.6605,135.27,135.21,1.63077593]
[1767817656143,6.6605,135.27,135.21,8.53613131]
[1767817659545,6.6605,135.27,135.21,15.19953131]
[1767817662141,6.6612,135.26,135.21,6.90535538]
[1767817662438,2.18366666,135.26,135.19,8.53613131]
[1767817663539,6.6618,135.25,135.19,8.53613131]
[1767817665446,2.18366666,135.24,135.18,6.90535538]
[1767817665651,2.18366666,135.24,135.15,8.53613131]
[1767817666444,2.18366666,135.24,135.15,1.63077593]
[1767817666648,8.84676666,135.22,135.15,8.29717593]
[1767817666839,94.0831,135.22,135.15,8.29717593]
[1767817671248,94.0831,135.22,135.16,6.6659]
[1767817671446,94.0831,135.22,135.15,1.63077593]
[1767817672546,94.0831,135.22,135.15,8.29717593]
[1767817673241,6.6623,135.24,135.16,1.63077593]
[1767817674043,94.1015,135.25,135.18,1.63077593]
[1767817674451,6.6615,135.25,135.18,1.63077593]
[1767817675639,94.1015,135.25,135.18,8.29567593]
[1767817677248,6.6615,135.25,135.18,8.29567593]
[1767817677438,6.6615,135.25,135.19,6.6644]
[1767817677750,87.44,135.26,135.2,1.63077593]
[1767817678247,87.44,135.26,135.2,8.29467593]
[1767817679346,87.44,135.27,135.2,1.63077593]
[1767817680652,6.662,135.24,135.18,1.63077593]
[1767817680851,2.18366666,135.24,135.16,1.63077593]
[1767817681048,6.6636,135.21,135.14,8.29727593]
[1767817681251,89.62366666,135.22,135.14,1.63077593]
[1767817681447,2.18366666,135.22,135.14,1.63077593]
[1767817681650,2.18366666,135.2,135.12,1.49600332]
[1767817682346,8.84776666,135.2,135.12,8.16360332]
[1767817682546,2.18366666,135.2,135.12,1.49600332]
[1767817683547,6.665,135.18,135.12,1.49600332]
[1767817684650,6.6657,135.17,135.1,6.6687]
[1767817684857,6.6657,135.17,135.09,1.57287627]
[1767817685357,6.6657,135.17,135.1,8.24167627]
[1767817686054,87.44,135.18,135.11,1.57287627]
[1767817686751,94.1247,135.19,135.11,1.57287627]
[1767817687552,94.1247,135.19,135.11,8.24107627]
[1767817687755,6.665,135.18,135.11,8.24107627]
[1767817688552,6.6644,135.2,135.13,1.57287627]
[1767817690360,6.6644,135.2,135.14,1.57287627]
[1767817690866,2.18366666,135.25,135.16,1.57287627]
[1767817691068,87.46,135.24,135.16,1.57287627]
[1767817691955,6.6627,135.23,135.16,8.23847627]
[1767817692156,6.6627,135.23,135.16,10.42214293]
[1767817694969,6.6627,135.23,135.17,8.23827627]
[1767817695764,87.46,135.24,135.17,8.23827627]
[1767817695969,87.46,135.24,135.18,1.57287627]
[1767817697863,94.1222,135.24,135.18,1.57287627]
[1767817701766,6.6625,135.23,135.18,1.57287627]
[1767817707575,6.6625,135.23,135.16,1.57287627]
[1767817708577,6.6625,135.23,135.17,1.57287627]
[1767817710678,6.6625,135.23,135.17,8.23817627]
[1767817712576,194.50799178,135.24,135.14,6.90535538]
[1767817712784,103.6392,135.23,135.12,8.42718437]
[1767817712972,87.44,135.22,135.12,6.90535538]
[1767817713175,6.6635,135.21,135.14,6.6668]
[1767817713376,6.6635,135.21,135.14,8.18862899]
[1767817714874,6.6639,135.2,135.14,8.18862899]
[1767817716485,6.6639,135.2,135.14,1.52182899]
[1767817716683,90.85319178,135.21,135.1,6.90535538]
[1767817716894,103.6625,135.2,135.1,1.52182899]
[1767817717182,87.46,135.19,135.1,1.52182899]
[1767817720691,6.6652,135.18,135.1,8.19062899]
[1767817722299,6.6652,135.18,135.11,1.52182899]
[1767817722492,87.46,135.18,135.11,1.52182899]
[1767817723400,87.46,135.18,135.11,8.19002899]
[1767817725098,87.46,135.19,135.12,6.6679]
[1767817725500,87.46,135.19,135.12,8.18972899]
[1767817728394,87.46,135.19,135.13,6.6674]
[1767817728900,87.46,135.19,135.13,8.18922899]
[1767817729100,6.664,135.2,135.13,8.18922899]
[1767817729401,94.144,135.2,135.13,8.18922899]
[1767817729588,87.48,135.2,135.13,8.18922899]
[1767817729789,87.48,135.2,135.14,6.6669]
[1767817730099,90.89319178,135.21,135.14,6.6669]
[1767817730794,97.55669178,135.21,135.14,8.18872899]
[1767817731191,97.55669178,135.21,135.14,6.6669]
[1767817731401,90.89319178,135.21,135.15,1.52182899]
[1767817732001,87.48,135.21,135.15,1.52182899]
[1767817732395,3.41319178,135.23,135.15,8.18802899]
[1767817732597,90.89319178,135.23,135.15,8.18802899]
[1767817733488,90.89319178,135.23,135.13,8.18892899]
[1767817734606,6.6636,135.21,135.13,8.18892899]
[1767817734903,6.6636,135.21,135.14,8.18872899]
[1767817735898,6.6641,135.2,135.12,1.52182899]
[1767817737705,6.6641,135.2,135.13,6.6673]
[1767817738303,6.6641,135.2,135.14,6.6669]
[1767817738702,87.48,135.21,135.14,6.6669]
[1767817738901,87.48,135.21,135.14,8.18872899]
[1767817739601,94.1436,135.21,135.14,8.18872899]
[1767817740108,6.6636,135.21,135.14,8.18872899]
[1767817740302,6.6636,135.21,135.15,6.6663]
[1767817740606,87.46,135.21,135.15,8.18812899]
[1767817740903,87.46,135.21,135.15,1.52182899]
[1767817741305,6.663,135.22,135.15,1.52182899]
[1767817741806,6.663,135.22,135.16,6.6659]
[1767817742800,87.46,135.23,135.17,6.6654]
[1767817742997,3.41319178,135.25,135.17,6.6654]
[1767817743302,87.46,135.24,135.17,6.6654]
[1767817743607,87.46,135.24,135.16,8.23444547]
[1767817744607,6.663,135.22,135.16,8.23444547]
[1767817746708,6.663,135.22,135.16,1.56854547]
[1767817750409,87.46,135.24,135.16,1.56854547]
[1767817751105,87.46,135.24,135.17,1.5954241]
[1767817751710,87.46,135.25,135.17,1.5954241]
[1767817752311,6.662,135.24,135.17,1.5954241]
[1767817755103,6.662,135.24,135.17,8.2606241]
[1767817756208,87.46,135.25,135.18,8.2603241]
[1767817757215,87.46,135.25,135.2,1.5954241]
[1767817757410,106.98779178,135.32,135.2,1.5954241]
[1767817757606,87.46,135.31,135.2,1.5954241]
[1767817758610,6.66,135.28,135.21,8.2588241]
[1767817758912,87.46,135.31,135.21,1.5954241]
[1767817759612,6.6594,135.3,135.22,1.5954241]
[1767817760411,6.6594,135.3,135.23,8.2579241]
[1767817760714,6.6594,135.3,135.23,1.5954241]
[1767817761110,87.44,135.31,135.24,6.6618]
[1767817762009,3.41319178,135.35,135.25,1.5954241]
[1767817762214,6.6576,135.33,135.25,1.5954241]
[1767817763014,6.6576,135.33,135.26,1.5954241]
[1767817763615,6.6581,135.32,135.25,6.6611]
[1767817763804,6.6581,135.32,135.25,1.5954241]
[1767817764211,94.0975,135.34,135.26,6.661]
[1767817765820,94.0975,135.34,135.27,8.2558241]
[1767817766007,6.6575,135.34,135.27,8.2558241]
[1767817766410,106.94319178,135.38,135.28,8.2553241]
[1767817766411,6.6565,135.36,135.28,8.2553241]
[1767817766610,94.0765,135.36,135.28,8.2553241]
[1767817766812,94.0765,135.36,135.28,1.5954241]
[1767817768627,94.0765,135.36,135.29,6.6594]
[1767817771232,6.6566,135.35,135.28,1.5954241]
[1767817772734,6.6566,135.35,135.28,8.2553241]
[1767817775336,6.6566,135.35,135.29,6.6595]
[1767817777331,89.58047194,135.37,135.29,6.6595]
[1767817778529,6.6561,135.36,135.29,6.6595]
[1767817779339,6.6566,135.35,135.28,8.2554241]
[1767817781542,96.23647194,135.37,135.3,1.59469553]
[1767817782840,6.6561,135.36,135.3,1.59469553]
[1767817785742,6.6556,135.37,135.31,1.59469553]
[1767817787745,6.6561,135.36,135.31,1.59469553]
[1767817788647,94.0355,135.38,135.31,1.59469553]
[1767817788847,87.38,135.38,135.31,1.59469553]
[1767817790046,6.6561,135.36,135.31,1.59469553]
[1767817792252,94.0355,135.38,135.31,8.25319553]
[1767817792649,87.38,135.38,135.31,8.25319553]
[1767817793554,6.6558,135.37,135.31,8.25319553]
[1767817797354,6.6551,135.38,135.32,8.25269553]
[1767817797654,6.6551,135.38,135.32,1.59469553]
[1767817798856,6.6556,135.37,135.32,1.59469553]
[1767817800855,2.18047194,135.41,135.33,1.59469553]
[1767817801056,103.4521,135.48,135.38,8.24979553]
[1767817801251,87.36,135.47,135.38,8.24979553]
[1767817801555,87.36,135.47,135.36,2.18047194]
[1767817801556,87.36,135.47,135.4,8.25340495]
[1767817801759,87.36,135.47,135.4,1.59930495]
[1767817802156,2.18047194,135.46,135.37,8.13274145]
[1767817802358,89.54047194,135.46,135.37,1.47764145]
[1767817802660,2.18047194,135.44,135.36,6.6556]
[1767817802954,87.36,135.46,135.35,88.83764145]
[1767817802955,2.18047194,135.42,135.35,88.83764145]
[1767817803161,2.18047194,135.42,135.33,1.47764145]
[1767817803846,2.18047194,135.42,135.35,8.13414145]
[1767817804060,89.54047194,135.44,135.35,8.13414145]
[1767817804853,2.18047194,135.4,135.31,87.36]
[1767817805052,2.18047194,135.38,135.31,87.36]
[1767817805258,2.18047194,135.38,135.32,8.13554145]
[1767817805656,2.18047194,135.42,135.33,1.47764145]
[1767817807361,2.18047194,135.4,135.33,1.47764145]
[1767817807664,8.83467194,135.4,135.33,8.13504145]
[1767817807862,8.83467194,135.4,135.33,1.47764145]
[1767817807863,2.18047194,135.4,135.33,1.47764145]
[1767817808054,2.18047194,135.4,135.31,1.47764145]
[1767817808750,6.6551,135.38,135.31,8.13574145]
[1767817808955,8.83557194,135.38,135.31,8.13574145]
[1767817809458,6.6556,135.37,135.29,102.38486041]
[1767817809763,6.6556,135.37,135.3,1.47764145]
[1767817810654,6.6556,135.37,135.3,8.13664145]
[1767817811952,8.83667194,135.36,135.29,87.36]
[1767817812464,8.83667194,135.36,135.29,88.83764145]
[1767817812864,6.6562,135.36,135.29,88.83764145]
[1767817813251,6.6562,135.36,135.3,1.47764145]
[1767817813462,89.52047194,135.38,135.3,8.13654145]
[1767817814158,6.6556,135.37,135.3,8.13654145]
[1767817814366,87.36,135.39,135.31,8.13614145]
[1767817814755,87.36,135.39,135.32,1.47764145]
[1767817815769,103.5045,135.41,135.33,1.47764145]
[1767817815770,87.36,135.41,135.33,1.47764145]
[1767817816158,6.6541,135.4,135.34,1.47764145]
[1767817817072,6.6534,135.42,135.35,1.47764145]
[1767817817270,2.18047194,135.46,135.37,1.47764145]
[1767817817464,89.54047194,135.46,135.37,1.47764145]
[1767817817664,87.36,135.46,135.37,1.47764145]
[1767817817868,89.54047194,135.46,135.37,1.47764145]
[1767817818068,6.6524,135.44,135.37,8.13314145]
[1767817819069,96.19207194,135.46,135.38,6.655]
[1767817819274,89.54047194,135.46,135.38,6.655]
[1767817820677,6.6517,135.45,135.38,6.655]
[1767817821384,6.6522,135.44,135.38,6.655]
[1767817821872,6.6527,135.43,135.37,1.47764145]
[1767817822480,6.6531,135.42,135.37,1.47764145]
[1767817823075,8.83307194,135.44,135.37,1.47764145]
[1767817823276,2.18047194,135.44,135.37,1.47764145]
[1767817824079,6.6521,135.45,135.37,8.13314145]
[1767817824281,6.6521,135.45,135.38,1.47764145]
[1767817824672,89.54047194,135.46,135.38,1.47764145]
[1767817824876,6.6526,135.43,135.38,1.47764145]
[1767817825074,6.6526,135.43,135.36,3.65811339]
[1767817825582,6.6533,135.42,135.36,1.47764145]
[1767817826578,2.18047194,135.42,135.34,1.47764145]
[1767817826885,89.52047194,135.42,135.34,1.47764145]
[1767817827079,96.17387194,135.42,135.34,8.13444145]
[1767817827290,96.17387194,135.42,135.34,1.47764145]
[1767817828791,96.17387194,135.42,135.35,6.6565]
[1767817829592,89.52047194,135.42,135.33,2.18047194]
[1767817829782,2.18047194,135.4,135.32,1.47764145]
[1767817829983,89.52047194,135.4,135.32,1.47764145]
[1767817830590,6.6557,135.37,135.32,1.47764145]
[1767817832087,6.6557,135.37,135.3,1.47570105]
[1767817833295,6.6557,135.37,135.3,8.13470105]
[1767817834498,87.34,135.4,135.3,1.47570105]
[1767817835188,87.34,135.4,135.31,1.47570105]
[1767817835695,6.6551,135.38,135.32,6.658]
[1767817836189,6.6551,135.38,135.31,1.47570105]
[1767817836394,6.6556,135.37,135.3,6.6586]
[1767817837492,6.6551,135.39,135.31,6.6585]
[1767817838597,6.6551,135.39,135.32,1.47570105]
[1767817840800,6.6552,135.38,135.32,1.47570105]
[1767817843306,6.6556,135.37,135.31,6.6585]
[1767817844012,6.6561,135.36,135.3,1.47570105]
[1767817845710,6.6561,135.36,135.3,8.13460105]
[1767817853013,190.8524,135.4,135.3,1.47570105]
[1767817853014,103.5187,135.39,135.3,1.47570105]
[1767817853208,87.36,135.38,135.3,1.47570105]
[1767817854722,6.6565,135.36,135.3,1.47570105]
[1767817857326,90.76612265,135.38,135.28,8.13570105]
[1767817857533,103.5342,135.37,135.28,1.47570105]
[1767817857829,87.36,135.36,135.28,1.47570105]
[1767817858429,190.9041,135.36,135.26,15.03596704]
[1767817858628,190.9041,135.36,135.26,8.13630105]
[1767817858930,190.9041,135.36,135.27,1.47570105]
[1767817859321,6.658,135.33,135.27,8.13620105]
[1767817859827,87.36,135.36,135.27,1.47570105]
[1767817860028,6.657,135.35,135.29,1.47570105]
[1767817860230,87.36,135.36,135.29,1.47570105]
[1767817860525,94.0151,135.39,135.32,6.658]
[1767817860727,103.5056,135.41,135.32,6.658]
[1767817861031,87.36,135.39,135.32,6.658]
[1767817861227,6.6551,135.38,135.31,1.47570105]
[1767817862522,6.6551,135.38,135.31,8.13410105]
[1767817863834,94.0146,135.39,135.32,1.54091763]
[1767817864132,87.36,135.42,135.32,1.54091763]
[1767817865135,6.654,135.41,135.34,8.19791763]
[1767817866026,6.6531,135.43,135.35,1.54091763]
[1767817866332,190.8264,135.46,135.35,1.54091763]
[1767817866333,87.36,135.46,135.36,1.54091763]
[1767817867133,103.4584,135.47,135.36,1.54091763]
[1767817867335,87.36,135.45,135.36,1.54091763]
[1767817867633,94.0121,135.45,135.37,8.19641763]
[1767817868135,87.36,135.45,135.39,6.6545]
[1767817868322,3.40612265,135.5,135.39,6.6545]
[1767817868527,87.36,135.48,135.39,8.19541763]
[1767817868723,6.6512,135.46,135.39,8.19541763]
[1767817870732,94.0106,135.48,135.4,1.54091763]
[1767817871538,6.6506,135.48,135.4,1.54091763]
[1767817872535,6.6506,135.48,135.41,6.6534]
[1767817872835,6.6506,135.48,135.41,8.19431763]
[1767817873043,87.34,135.49,135.42,1.54091763]
[1767817873234,87.34,135.49,135.42,8.19391763]
[1767817874340,87.32,135.52,135.43,8.19341763]
[1767817875335,87.32,135.52,135.44,1.54091763]
[1767817875538,6.6489,135.51,135.44,1.54091763]
[1767817878242,6.6489,135.51,135.44,8.19291763]
[1767817878434,87.32,135.52,135.44,8.19291763]
[1767817878633,87.32,135.52,135.44,1.54091763]
[1767817878941,87.32,135.52,135.46,8.19201763]
[1767817879141,87.32,135.55,135.46,8.19201763]
[1767817879446,87.3,135.57,135.49,8.19051763]
[1767817880540,93.9461,135.57,135.49,8.19051763]
[1767817881343,6.6461,135.57,135.5,6.6491]
[1767817881544,87.3,135.58,135.5,1.54091763]
[1767817882243,87.3,135.58,135.47,106.85772265]
[1767817882449,3.40612265,135.56,135.44,1.54091763]
[1767817882843,87.3,135.55,135.46,6.6511]
[1767817883639,87.28,135.54,135.46,6.6511]
[1767817884550,6.6472,135.55,135.47,1.54091763]
[1767817884753,87.28,135.54,135.47,1.54091763]
[1767817885551,87.28,135.54,135.48,6.65]
[1767817886450,93.9274,135.54,135.47,1.54091763]
[1767817887537,3.40612265,135.56,135.44,103.4748]
[1767817887538,3.40612265,135.56,135.48,1.54091763]
[1767817887848,87.28,135.56,135.48,1.54091763]
[1767817888545,93.9264,135.56,135.49,6.6497]
[1767817891051,2.17520724,135.54,135.47,6.6506]
[1767817891245,2.17520724,135.54,135.46,1.54091763]
[1767817891550,6.6477,135.53,135.46,8.19201763]
[1767817892153,8.82450724,135.5,135.43,6.6523]
[1767817892352,8.82450724,135.5,135.43,1.51321337]
[1767817892353,2.17520724,135.5,135.43,1.51321337]
[1767817893852,8.82450724,135.5,135.43,8.16581337]
[1767817898754,6.6493,135.5,135.44,6.6521]
[1767817898948,96.10380724,135.52,135.45,1.51321337]
[1767817899447,96.10380724,135.52,135.46,6.6511]
[1767817899448,89.45520724,135.52,135.46,6.6511]
[1767817899644,2.17520724,135.52,135.46,6.6511]
[1767817900247,103.3938,135.56,135.46,8.16431337]
[1767817900453,89.45520724,135.55,135.47,8.16381337]
[1767817900841,2.17520724,135.55,135.47,8.16381337]
[1767817901044,89.45520724,135.55,135.47,8.16381337]
[1767817901650,6.6472,135.54,135.47,8.16381337]
[1767817906259,6.6472,135.54,135.48,6.6502]
[1767817906959,93.9072,135.54,135.48,6.6502]
[1767817907351,6.6472,135.54,135.48,6.6502]
[1767817907550,6.6473,135.54,135.48,6.6502]
[1767817908162,93.9073,135.54,135.48,6.6502]
[1767817909649,2.17520724,135.55,135.49,8.16271337]
[1767817910762,87.26,135.56,135.49,8.16271337]
[1767817911054,2.17520724,135.55,135.49,8.16271337]
[1767817911363,2.17520724,135.55,135.49,1.51321337]
[1767817911864,6.6473,135.54,135.49,1.51321337]
[1767817913062,93.9067,135.56,135.49,8.16271337]
[1767817913362,96.08190724,135.56,135.49,8.16271337]
[1767817913566,6.6468,135.55,135.49,8.16271337]
[1767817913966,93.9068,135.55,135.49,8.16271337]
[1767817915875,8.82250724,135.54,135.47,6.6504]
[1767817916267,96.08250724,135.54,135.47,6.6504]
[1767817916669,2.17520724,135.52,135.45,6.85928943]
[1767817916869,2.17520724,135.5,135.42,8.3725028]
[1767817917270,89.43520724,135.5,135.42,8.3725028]
[1767817917473,96.08450724,135.5,135.43,6.6524]
[1767817917673,2.17520724,135.48,135.4,8.3725028]
[1767817917879,2.17520724,135.46,135.4,1.51321337]
[1767817918871,87.26,135.47,135.4,8.16711337]
[1767817919171,87.26,135.49,135.41,1.51321337]
[1767817920478,87.26,135.49,135.41,3.68842061]
[1767817920782,6.6493,135.5,135.43,1.51321337]
[1767817920965,89.43520724,135.51,135.43,1.51321337]
[1767817921170,96.08400724,135.51,135.44,6.652]
[1767817921371,89.43520724,135.51,135.43,1.51321337]
[1767817922479,93.9093,135.5,135.43,8.16571337]
[1767817923279,87.26,135.5,135.43,8.16571337]
[1767817923882,87.26,135.5,135.43,1.51321337]
[1767817923883,93.9093,135.5,135.43,1.51321337]
[1767817924482,6.6493,135.5,135.43,1.51321337]
[1767817926284,6.6493,135.5,135.43,8.16581337]
[1767817926979,6.6497,135.49,135.43,8.16581337]
[1767817927181,2.17520724,135.47,135.39,1.50122188]
[1767817927486,89.45520724,135.47,135.39,1.50122188]
[1767817928184,87.28,135.47,135.4,8.15522188]
[1767817928385,6.6507,135.48,135.41,1.50122188]
[1767817928583,93.9307,135.48,135.41,1.50122188]
[1767817928778,6.6507,135.48,135.41,1.50122188]
[1767817928983,93.9297,135.5,135.42,1.50122188]
[1767817929385,2.17520724,135.49,135.41,6.6531]
[1767817929585,2.17520724,135.49,135.41,8.14398426]
[1767817930581,6.6502,135.48,135.42,6.6531]
[1767817930984,2.17520724,135.49,135.42,1.49088426]
[1767817931190,93.9295,135.5,135.43,8.14348426]
[1767817931876,6.6495,135.5,135.43,8.14348426]
[1767817933994,6.6495,135.5,135.44,6.6521]
[1767817934593,96.10390724,135.51,135.44,8.14298426]
[1767817935488,6.6492,135.5,135.44,1.49088426]
[1767817936494,6.6492,135.5,135.44,8.14298426]
[1767817937886,2.17520724,135.51,135.44,1.49088426]
[1767817938195,89.45520724,135.56,135.45,1.49088426]
[1767817938692,89.45520724,135.56,135.45,3.6660915]
[1767817938894,6.6478,135.53,135.46,8.14198426]
[1767817939287,2.17520724,135.52,135.44,1.49088426]
[1767817939491,2.17520724,135.52,135.45,6.6516]
[1767817940693,6.6487,135.51,135.45,6.6516]
[1767817941993,6.6487,135.51,135.44,6.6521]
[1767817943296,6.6487,135.51,135.45,6.6516]
[1767817943498,2.17520724,135.52,135.45,6.6516]
[1767817944593,8.82340724,135.52,135.45,6.6516]
[1767817944891,2.17520724,135.5,135.43,8.14308426]
[1767817945097,8.82460724,135.5,135.43,8.14308426]
[1767817945296,2.17520724,135.5,135.43,1.49088426]
[1767817946692,2.17520724,135.5,135.44,6.6521]
[1767817948298,6.6493,135.5,135.44,6.6521]
[1767817950698,6.6498,135.49,135.42,6.6527]
[1767817950904,2.17520724,135.48,135.41,1.49088426]
[1767817951290,2.17520724,135.48,135.41,8.14448426]
[1767817951494,8.82580724,135.48,135.41,8.14448426]
[1767817951896,96.10580724,135.48,135.41,8.14448426]
[1767817952294,89.45520724,135.48,135.39,8.51584092]
[1767817952499,3.40348345,135.47,135.39,1.61976393]
[1767817953007,6.6522,135.44,135.37,1.61976393]
[1767817954605,6.6522,135.44,135.37,8.27536393]
[1767817956503,6.6528,135.43,135.37,1.61976393]
[1767817956707,106.86238345,135.47,135.37,1.61976393]
[1767817956897,87.28,135.45,135.37,1.61976393]
[1767817958602,6.6523,135.44,135.37,8.27536393]
[1767817960208,87.28,135.45,135.38,6.6551]
[1767817961705,93.9317,135.45,135.38,6.6551]
[1767817962406,6.6509,135.47,135.4,1.61976393]
[1767817962602,93.9509,135.47,135.4,1.61976393]
[1767817963006,93.9509,135.47,135.41,1.61976393]
[1767817963510,6.6513,135.46,135.37,1.61976393]
[1767817964709,6.6513,135.46,135.39,8.27436393]
[1767817966620,6.6513,135.46,135.4,1.61976393]
[1767817967522,125.6208,135.51,135.36,110.43217699]
[1767817967523,93.9506,135.48,135.42,1.61976393]
[1767817970424,93.9506,135.48,135.42,8.27266393]
[1767817970616,87.3,135.48,135.42,1.61976393]
[1767817971515,87.3,135.48,135.43,6.6526]
[1767817971922,87.3,135.48,135.43,8.27236393]
[1767817975626,93.9503,135.48,135.42,6.6531]
[1767817975823,87.3,135.48,135.39,1.61976393]
[1767817976531,6.6512,135.46,135.4,6.6541]
[1767817979427,3.40348345,135.46,135.36,1.61976393]
[1767817979623,87.3,135.45,135.36,1.61976393]
[1767817980622,87.3,135.45,135.37,8.27526393]
[1767817981329,3.40348345,135.51,135.39,1.61976393]
[1767817981637,87.3,135.49,135.4,1.61976393]
[1767817981933,106.80928345,135.54,135.43,1.61976393]
[1767817982129,87.3,135.53,135.43,1.61976393]
[1767817982630,6.6484,135.52,135.45,6.6515]
[1767817982832,6.6484,135.52,135.45,8.16917422]
[1767817987138,87.3,135.53,135.47,1.51767422]
[1767817987937,87.3,135.53,135.46,6.6511]
[1767817988445,87.3,135.53,135.46,8.16877422]
[1767817988738,6.6476,135.54,135.46,8.16877422]
[1767817988941,93.9276,135.54,135.46,8.16877422]
[1767817990245,93.9276,135.54,135.46,1.51767422]
[1767817990947,87.28,135.54,135.47,1.51767422]
[1767817991441,87.28,135.58,135.48,1.6083192]
[1767817991941,6.6458,135.57,135.49,8.2577192]
[1767817994040,6.6458,135.57,135.5,1.6083192]
[1767817994240,87.28,135.58,135.51,1.6083192]
[1767817995745,6.6451,135.59,135.47,106.85478345]
[1767817995746,6.6451,135.59,135.52,8.2564192]
[1767817996242,87.26,135.6,135.5,6.6488]
[1767817996444,87.26,135.59,135.5,6.6488]
[1767817997141,87.26,135.59,135.5,8.2571192]
[1767817997537,6.6458,135.57,135.5,8.2571192]
[1767817998549,3.40348345,135.57,135.45,1.6083192]
[1767817999243,3.40348345,135.57,135.47,1.6083192]
[1767817999449,87.26,135.56,135.47,1.6083192]
[1767818000551,87.26,135.56,135.48,6.6501]
[1767818000552,6.6468,135.55,135.48,6.6501]
[1767818000947,87.26,135.56,135.47,1.6083192]
[1767818001258,6.6474,135.54,135.47,8.2589192]
[1767818002753,6.6474,135.54,135.43,197.62174092]
[1767818002754,6.6478,135.53,135.45,6.6512]
[1767818002946,3.40348345,135.54,135.44,1.6083192]
[1767818003257,87.26,135.53,135.44,1.6083192]
[1767818003957,6.6482,135.52,135.46,1.6083192]
[1767818004848,6.6477,135.54,135.47,1.6083192]
[1767818006154,6.6477,135.54,135.47,8.2589192]
[1767818006353,6.6477,135.54,135.48,1.6083192]
[1767818006548,6.6477,135.54,135.48,8.2584192]
[1767818007353,93.9065,135.56,135.48,8.2584192]
[1767818007854,6.6467,135.55,135.48,8.2584192]
[1767818008949,87.26,135.56,135.5,1.6083192]
[1767818009355,87.26,135.56,135.5,8.2575192]
[1767818009655,87.26,135.56,135.5,1.6083192]
[1767818010550,93.9062,135.56,135.5,1.6083192]
[1767818011761,93.9062,135.56,135.5,8.2575192]
[1767818013963,87.26,135.56,135.51,1.48587651]
[1767818014767,87.26,135.56,135.51,8.13457651]
[1767818014963,6.6455,135.58,135.51,8.13457651]
[1767818015170,89.41345774,135.59,135.52,8.13397651]
[1767818015352,87.24,135.59,135.52,1.48587651]
[1767818015759,2.17345774,135.61,135.54,6.6472]